fUSD/lending_fUSD_20240319
["ID","MTS","AMOUNT","RATE_DAILY","PERIOD"]
[319600316,1710885133693,-767.81,0.00032602,2]
[319600317,1710885133712,-3358.0,0.00032602,2]
[319600318,1710885133730,-500.0,0.00032602,2]
[319600319,1710885133748,-500.0,0.00032602,2]
[319600320,1710885133766,-2995.65,0.00032602,2]
[319600321,1710885133787,-348.05426165,0.00032602,2]
[319600322,1710885133805,-2879.31,0.00032602,2]
[319600323,1710885133818,-3475.26,0.00032602,2]
[319600324,1710885133836,-817.64,0.00032602,2]
[319600325,1710885133854,-626.59,0.00032602,2]
[319600326,1710885133871,-1532.23,0.00032602,2]
[319600327,1710885133886,-500.0,0.00032602,2]
[319600328,1710885133904,-1675.59,0.00032602,2]
[319600329,1710885133919,-1175.56,0.00032602,2]
[319600330,1710885133934,-1109.08,0.00032602,2]
[319600331,1710885133950,-1104.88,0.00032602,2]
[319600332,1710885133965,-1008.18,0.00032602,2]
[319600333,1710885133981,-2383.57,0.00032602,2]
[319600334,1710885133998,-6551.95,0.00032602,2]
[319600335,1710885134013,-20378.39,0.00032602,2]
[319600336,1710885134028,-3428.01,0.00032602,2]
[319600337,1710885134045,-500.0,0.00032602,2]
[319600338,1710885134060,-500.0,0.00032602,2]
[319600339,1710885134075,-724.41,0.00032602,2]
[319600340,1710885134091,-4023.07,0.00032602,2]
[319600341,1710885134106,-2691.76,0.00032602,2]
[319600342,1710885134133,-500.0,0.00032602,2]
[319600343,1710885134147,-518.98,0.00032602,2]
[319600344,1710885134162,-532.04,0.00032602,2]
[319600345,1710885134177,-500.0,0.00032602,2]
[319600346,1710885134193,-3655.41,0.00032602,2]
[319600347,1710885134208,-3100.4,0.00032602,2]
[319600348,1710885134222,-532.61,0.00032602,2]
[319600349,1710885134238,-5255.9,0.00032602,2]
[319600350,1710885134253,-1495.58,0.00032602,2]
[319600351,1710885134267,-646.23,0.00032602,2]
[319600352,1710885134282,-513.01903835,0.00032602,2]
[319600353,1710885134298,-500.0,0.00032602,2]
[319600354,1710885134312,-856.3,0.00032602,2]
[319600355,1710885134328,-2848.19,0.00032602,2]
[319600356,1710885134343,-1919.76,0.00032602,2]
[319600357,1710885134359,-500.0,0.00032602,2]
[319600358,1710885134374,-514.35,0.00032602,2]
[319600359,1710885134389,-84885.72,0.00032602,2]
[319600360,1710885134405,-917.99,0.00032602,2]
[319600361,1710885134419,-7528.25,0.00032602,2]
[319600362,1710885134435,-2075.6,0.00032602,2]
[319600363,1710885134451,-556.06,0.00032602,2]
[319600364,1710885134467,-500.0,0.00032602,2]
[319600365,1710885134481,-4053.66,0.00032602,2]
[319600366,1710885134496,-950.92,0.00032602,2]
[319600367,1710885134512,-1498.56,0.00032602,2]
[319600368,1710885134527,-6114.82,0.00032602,2]
[319600369,1710885134542,-1068.02,0.00032602,2]
[319600370,1710885134560,-1140.75,0.00032602,2]
[319600371,1710885134574,-1363.9,0.00032602,2]
[319600372,1710885134589,-500.0,0.00032602,2]
[319600373,1710885134604,-680.37,0.00032602,2]
[319600374,1710885134618,-7331.78,0.00032602,2]
[319600375,1710885134633,-500.0,0.00032602,2]
[319600376,1710885134646,-5255.76,0.00032602,2]
[319600377,1710885134661,-6608.67,0.00032602,2]
[319600378,1710885134675,-1065.89,0.00032602,2]
[319600379,1710885134691,-535.13,0.00032602,2]
[319600380,1710885134705,-2244.41,0.00032602,2]
[319600381,1710885134721,-1134.2,0.00032602,2]
[319600382,1710885134735,-12679.11,0.00032602,2]
[319600383,1710885134750,-501.67,0.00032602,2]
[319600384,1710885134764,-500.0,0.00032602,2]
[319600385,1710885134778,-500.0,0.00032602,2]
[319600386,1710885134792,-500.0,0.00032602,2]
[319600387,1710885134806,-500.0,0.00032602,2]
[319600388,1710885134821,-952.29,0.00032602,2]
[319600389,1710885134837,-16057.66,0.00032602,2]
[319600390,1710885134851,-5689.03,0.00032602,2]
[319600391,1710885134865,-9318.38,0.00032602,2]
[319600392,1710885134880,-661.71,0.00032602,2]
[319600393,1710885134895,-6799.03,0.00032602,2]
[319600394,1710885134909,-4026.73,0.00032602,2]
[319600395,1710885134924,-3035.5,0.00032602,2]
[319600396,1710885134938,-3750.07,0.00032602,2]
[319600397,1710885134952,-935.16,0.00032602,2]
[319600398,1710885134968,-6185.77,0.00032602,2]
[319600399,1710885134983,-1750.15,0.00032602,2]
[319600400,1710885134998,-507.49,0.00032602,2]
[319600401,1710885135014,-329.34223193,0.00032602,2]
[319600402,1710885135029,-21984.05,0.00032602,2]
[319600403,1710885135044,-500.0,0.00032602,2]
[319600404,1710885135059,-682.19,0.00032602,2]
[319600405,1710885135072,-1656.75,0.00032602,2]
[319600406,1710885135087,-3232.39,0.00032602,2]
[319600407,1710885135101,-2644.39,0.00032602,2]
[319600408,1710885135117,-4012.77,0.00032602,2]
[319600409,1710885135132,-500.0,0.00032602,2]
[319600410,1710885135147,-5906.29,0.00032602,2]
[319600411,1710885135168,-500.0,0.00032602,2]
[319600412,1710885135183,-500.0,0.00032602,2]
[319600413,1710885135198,-1898.34,0.00032602,2]
[319600414,1710885135213,-6356.12,0.00032602,2]
[319600415,1710885135227,-860.9,0.00032602,2]
[319600416,1710885135241,-2450.74,0.00032602,2]
[319600417,1710885135256,-741.49,0.00032602,2]
[319600418,1710885135271,-988.62,0.00032602,2]
[319600419,1710885135286,-500.0,0.00032602,2]
[319600420,1710885135300,-502.93,0.00032602,2]
[319600421,1710885135315,-3281.78,0.00032602,2]
[319600422,1710885135330,-10393.93,0.00032602,2]
[319600423,1710885135345,-887.69,0.00032602,2]
[319600424,1710885135360,-2054.31,0.00032602,2]
[319600425,1710885135375,-1073.2,0.00032602,2]
[319600426,1710885135391,-500.0,0.00032602,2]
[319600427,1710885135406,-444.50752301,0.00032602,2]
[319600428,1710885135421,-5676.82,0.00032602,2]
[319600429,1710885135436,-500.0,0.00032602,2]
[319600430,1710885135451,-2336.1,0.00032602,2]
[319600431,1710885135467,-784.81,0.00032602,2]
[319600432,1710885135482,-500.0,0.00032602,2]
[319600433,1710885135496,-2928.09,0.00032602,2]
[319600434,1710885135511,-958.78,0.00032602,2]
[319600435,1710885135527,-5305.03,0.00032602,2]
[319600436,1710885135541,-12462.52,0.00032602,2]
[319600437,1710885135557,-742.85,0.00032602,2]
[319600438,1710885135572,-6273.21,0.00032602,2]
[319600439,1710885135586,-500.0,0.00032602,2]
[319600440,1710885135600,-500.0,0.00032602,2]
[319600441,1710885135614,-3248.64,0.00032602,2]
[319600442,1710885135629,-8000.71,0.00032602,2]
[319600443,1710885135643,-9028.78,0.00032602,2]
[319600444,1710885135658,-7424.85,0.00032602,2]
[319600445,1710885135673,-7152.27,0.00032602,2]
[319600446,1710885135688,-603.25,0.00032602,2]
[319600447,1710885135703,-11402.88,0.00032602,2]
[319600448,1710885135717,-920.58,0.00032602,2]
[319600449,1710885135732,-862.02,0.00032602,2]
[319600450,1710885135747,-5180.59,0.00032602,2]
[319600451,1710885135762,-500.0,0.00032602,2]
[319600452,1710885135777,-1058.28,0.00032602,2]
[319600453,1710885135792,-6676.62,0.00032602,2]
[319600454,1710885135807,-50748.97,0.00032602,2]
[319600455,1710885135824,-12563.76,0.00032602,2]
[319600456,1710885135834,-4392.06,0.00032602,2]
[319600457,1710885135844,-500.0,0.00032602,2]
[319600458,1710885135853,-500.0,0.00032602,2]
[319600459,1710885135862,-947.45,0.00032602,2]
[319600460,1710885136122,-994.47,0.00032602,2]
[319600461,1710885136232,-6289.47,0.00032602,2]
[319600462,1710885136242,-1127.56,0.00032602,2]
[319600463,1710885136252,-500.0,0.00032602,2]
[319600464,1710885136262,-500.0,0.00032602,2]
[319600465,1710885136272,-1563.9,0.00032602,2]
[319600466,1710885136281,-1554.32,0.00032602,2]
[319600467,1710885136290,-2538.59,0.00032602,2]
[319600468,1710885136300,-9279.39,0.00032602,2]
[319600469,1710885136310,-2973.35,0.00032602,2]
[319600470,1710885136319,-500.0,0.00032602,2]
[319600471,1710885136329,-1071.73,0.00032602,2]
[319600472,1710885136339,-1557.91,0.00032602,2]
[319600473,1710885136349,-500.0,0.00032602,2]
[319600474,1710885136358,-921.84,0.00032602,2]
[319600475,1710885136367,-1497.67,0.00032602,2]
[319600476,1710885136378,-5460.3,0.00032602,2]
[319600477,1710885136387,-549.68,0.00032602,2]
[319600478,1710885136397,-866.95,0.00032602,2]
[319600479,1710885136407,-500.0,0.00032602,2]
[319600480,1710885136417,-23885.26,0.00032602,2]
[319600481,1710885136427,-34338.3,0.00032602,2]
[319600482,1710885136436,-6038.59,0.00032602,2]
[319600483,1710885136446,-2241.19,0.00032602,2]
[319600484,1710885136456,-870.15,0.00032602,2]
[319600485,1710885136468,-1003.35,0.00032602,2]
[319600486,1710885136477,-500.0,0.00032602,2]
[319600487,1710885136487,-5507.6,0.00032602,2]
[319600488,1710885136496,-5378.59,0.00032602,2]
[319600489,1710885136506,-615.59,0.00032602,2]
[319600490,1710885136515,-500.0,0.00032602,2]
[319600491,1710885136525,-681.39,0.00032602,2]
[319600492,1710885136535,-3623.08,0.00032602,2]
[319600493,1710885136546,-659.74,0.00032602,2]
[319600494,1710885136556,-500.0,0.00032602,2]
[319600495,1710885136565,-1648.34,0.00032602,2]
[319600496,1710885136575,-500.0,0.00032602,2]
[319600497,1710885136584,-7204.29,0.00032602,2]
[319600498,1710885136594,-976.18,0.00032602,2]
[319600499,1710885136604,-1912.73,0.00032602,2]
[319600500,1710885136614,-3082.4,0.00032602,2]
[319600501,1710885136624,-2522.27,0.00032602,2]
[319600502,1710885136635,-6424.1,0.00032602,2]
[319600503,1710885136644,-5688.06,0.00032602,2]
[319600504,1710885136653,-1570.96,0.00032602,2]
[319600505,1710885136663,-500.0,0.00032602,2]
[319600506,1710885136672,-1409.47,0.00032602,2]
[319600507,1710885136681,-2703.38,0.00032602,2]
[319600508,1710885136690,-10351.23,0.00032602,2]
[319600509,1710885136699,-500.0,0.00032602,2]
[319600510,1710885136708,-723.42,0.00032602,2]
[319600511,1710885136717,-3159.85,0.00032602,2]
[319600512,1710885136726,-19207.21,0.00032602,2]
[319600513,1710885136735,-3910.17,0.00032602,2]
[319600514,1710885136744,-989.66,0.00032602,2]
[319600515,1710885136753,-500.0,0.00032602,2]
[319600516,1710885136762,-1575.99,0.00032602,2]
[319600517,1710885136771,-2518.49,0.00032602,2]
[319600518,1710885136781,-500.0,0.00032602,2]
[319600519,1710885136790,-500.0,0.00032602,2]
[319600520,1710885136799,-602.98,0.00032602,2]
[319600521,1710885136808,-2902.62,0.00032602,2]
[319600522,1710885136817,-1081.46,0.00032602,2]
[319600523,1710885136826,-996.99,0.00032602,2]
[319600524,1710885136836,-11316.17,0.00032602,2]
[319600525,1710885136845,-722.94,0.00032602,2]
[319600526,1710885136854,-21059.27,0.00032602,2]
[319600527,1710885136864,-1144.28,0.00032602,2]
[319600528,1710885136873,-500.0,0.00032602,2]
[319600529,1710885136883,-592.77,0.00032602,2]
[319600530,1710885136892,-3248.34,0.00032602,2]
[319600531,1710885136900,-611.45,0.00032602,2]
[319600532,1710885136909,-500.0,0.00032602,2]
[319600533,1710885136919,-500.0,0.00032602,2]
[319600534,1710885136928,-1214.02,0.00032602,2]
[319600535,1710885136938,-5044.94,0.00032602,2]
[319600536,1710885136947,-500.0,0.00032602,2]
[319600537,1710885136956,-6225.21,0.00032602,2]
[319600538,1710885136966,-856.7,0.00032602,2]
[319600539,1710885136975,-608.72,0.00032602,2]
[319600540,1710885136984,-1511.11,0.00032602,2]
[319600541,1710885136993,-500.0,0.00032602,2]
[319600542,1710885137002,-1279.36,0.00032602,2]
[319600543,1710885137012,-8737.55,0.00032602,2]
[319600544,1710885137022,-11752.03,0.00032602,2]
[319600545,1710885137032,-4482.5,0.00032602,2]
[319600547,1710885137041,-1788.46,0.00032602,2]
[319600548,1710885137050,-5316.22,0.00032602,2]
[319600549,1710885137060,-1321.67,0.00032602,2]
[319600550,1710885137069,-22991.35,0.00032602,2]
[319600551,1710885137079,-518.08,0.00032602,2]
[319600552,1710885137088,-1177.76,0.00032602,2]
[319600553,1710885137097,-505.75,0.00032602,2]
[319600554,1710885137107,-1429.54,0.00032602,2]
[319600555,1710885137116,-2886.03,0.00032602,2]
[319600556,1710885137126,-500.0,0.00032602,2]
[319600557,1710885137135,-3473.42,0.00032602,2]
[319600558,1710885137144,-20562.17,0.00032602,2]
[319600559,1710885137153,-4026.93,0.00032602,2]
[319600560,1710885137163,-500.0,0.00032602,2]
[319600561,1710885137172,-805.12,0.00032602,2]
[319600562,1710885137181,-981.11,0.00032602,2]
[319600563,1710885137191,-877.4,0.00032602,2]
[319600564,1710885137201,-500.0,0.00032602,2]
[319600565,1710885137210,-1121.88,0.00032602,2]
[319600566,1710885137220,-836.09,0.00032602,2]
[319600567,1710885137230,-12965.17,0.00032602,2]
[319600568,1710885137239,-8047.18,0.00032602,2]
[319600569,1710885137249,-4640.74,0.00032602,2]
[319600570,1710885137259,-6661.58,0.00032602,2]
[319600571,1710885137268,-542.30126287,0.00032602,2]
[319600572,1710885137277,-720.32,0.00032602,2]
[319600573,1710885137286,-500.0,0.00032602,2]
[319600574,1710885137296,-3306.12,0.00032602,2]
[319600575,1710885137306,-1406.25,0.00032602,2]
[319600576,1710885137315,-603.58,0.00032602,2]
[319600577,1710885137325,-500.0,0.00032602,2]
[319600578,1710885137334,-6333.98,0.00032602,2]
[319600579,1710885137343,-1438.11,0.00032602,2]
[319600580,1710885137374,-26854.72,0.00032602,2]
[319600581,1710885137384,-2692.37,0.00032602,2]
[319600582,1710885137394,-614.48,0.00032602,2]
[319600583,1710885137403,-1298.71,0.00032602,2]
[319600584,1710885137413,-2847.31,0.00032602,2]
[319600585,1710885137422,-1953.31,0.00032602,2]
[319600586,1710885137431,-500.0,0.00032602,2]
[319600587,1710885137441,-521.8,0.00032602,2]
[319600588,1710885137451,-972.96,0.00032602,2]
[319600589,1710885137461,-500.0,0.00032602,2]
[319600590,1710885137475,-599.79,0.00032602,2]
[319600591,1710885137485,-1902.54,0.00032602,2]
[319600592,1710885137494,-1686.82,0.00032602,2]
[319600593,1710885137504,-673.97,0.00032602,2]
[319600594,1710885137514,-649.62,0.00032602,2]
[319600595,1710885137524,-26670.31,0.00032602,2]
[319600596,1710885137534,-5843.77,0.00032602,2]
[319600597,1710885137544,-1828.95,0.00032602,2]
[319600598,1710885137554,-691.9,0.00032602,2]
[319600599,1710885137562,-1109.32,0.00032602,2]
[319600600,1710885137571,-1199.84,0.00032602,2]
[319600601,1710885137581,-1216.0,0.00032602,2]
[319600602,1710885137590,-183.81,0.0003275,120]
[319600603,1710885137599,-500.0,0.000328,30]
[319600604,1710885137609,-2561.0,0.00032835,2]
[319600605,1710885137619,-1379.0,0.00032835,2]
[319600606,1710885137628,-959.0,0.00032835,2]
[319600607,1710885137637,-457.0,0.00032835,2]
[319600608,1710885137647,-536.0,0.00032835,2]
[319600609,1710885137656,-1226.0,0.00032835,2]
[319600610,1710885137665,-278.0,0.00032835,2]
[319600611,1710885137674,-603.0,0.00032835,2]
[319600612,1710885137684,-1250.0,0.00032835,2]
[319600613,1710885137693,-1264.0,0.00032835,2]
[319600614,1710885137703,-432.0,0.00032835,2]
[319600615,1710885137712,-800.0,0.00032835,2]
[319600616,1710885137721,-1136.0,0.00032835,2]
[319600617,1710885137730,-2931.0,0.00032835,2]
[319600618,1710885137740,-150.0,0.00032835,2]
[319600619,1710885137750,-357.0,0.00032835,2]
[319600620,1710885137760,-2419.0,0.00032835,2]
[319600621,1710885137769,-150.0,0.00032835,2]
[319600622,1710885137779,-1459.0,0.00032835,2]
[319600623,1710885137788,-1623.0,0.00032835,2]
[319600624,1710885137798,-213.0,0.00032835,2]
[319600625,1710885137807,-42890.0,0.00032835,2]
[319600626,1710885137816,-2377.0,0.00032835,2]
[319600627,1710885137825,-5662.0,0.00032835,2]
[319600628,1710885137835,-4283.833,0.00032835,2]
[319600629,1710885137844,-150.0,0.00032835,2]
[319600630,1710885137853,-176.34445066,0.00032874,4]
[319600631,1710885137863,-329.6068463,0.00032874,4]
[319600632,1710885137872,-156.54948531,0.00032874,4]
[319600633,1710885137882,-206.27589587,0.00032874,4]
[319600634,1710885137891,-155.11160592,0.00032875,4]
[319600635,1710885137899,-234.23091947,0.00032875,4]
[319600636,1710885137908,-171.53262849,0.00032875,4]
[319600637,1710885137918,-661.3571,0.00032875,4]
[319600638,1710885137927,-150.0,0.00032875,2]
[319600639,1710885137936,-500.57742157,0.00032876,5]
[319600640,1710885137945,-1041.1,0.00032876,2]
[319600641,1710885137954,-905.92,0.00032876,2]
[319600642,1710885137963,-760.8,0.00032876,2]
[319600643,1710885137973,-500.0,0.00032876,2]
[319600644,1710885137983,-500.0,0.00032876,2]
[319600645,1710885137992,-918.16,0.00032876,2]
[319600646,1710885138000,-1354.5,0.00032876,2]
[319600647,1710885138010,-356.17543324,0.00032876,2]
[319600648,1710885138019,-150.0,0.00032876,2]
[319600649,1710885138028,-563.69,0.00032876,2]
[319600650,1710885138038,-553.29,0.00032876,2]
[319600651,1710885138047,-500.0,0.00032876,2]
[319600652,1710885138056,-500.0,0.00032876,2]
[319600653,1710885138065,-500.0,0.00032876,2]
[319600654,1710885138074,-576.34,0.00032876,2]
[319600655,1710885138083,-500.0,0.00032876,2]
[319600656,1710885138093,-500.0,0.00032876,2]
[319600657,1710885138102,-628.41,0.00032876,2]
[319600658,1710885138111,-500.0,0.00032876,2]
[319600659,1710885138121,-500.0,0.00032876,2]
[319600660,1710885138130,-964.89,0.00032876,2]
[319600661,1710885138138,-620.13,0.00032876,2]
[319600662,1710885138148,-786.01,0.00032876,2]
[319600663,1710885138158,-865.28,0.00032876,2]
[319600664,1710885138168,-564.61,0.00032876,2]
[319600665,1710885138179,-491.95733887,0.00032876,2]
[319600666,1710885138189,-501.90326248,0.00032876,2]
[319600667,1710885138199,-500.0,0.00032876,2]
[319600668,1710885138208,-500.0,0.00032876,2]
[319600669,1710885138218,-529.43,0.00032876,2]
[319600670,1710885138227,-618.58,0.00032876,2]
[319600671,1710885138236,-563.52,0.00032876,2]
[319600672,1710885138245,-500.0,0.00032876,2]
[319600673,1710885138254,-2015.12,0.00032876,2]
[319600674,1710885138264,-500.0,0.00032876,2]
[319600675,1710885138274,-631.9,0.00032876,2]
[319600676,1710885138283,-681.13,0.00032876,2]
[319600677,1710885138293,-1086.99,0.00032876,2]
[319600678,1710885138302,-500.0,0.00032876,2]
[319600679,1710885138311,-500.0,0.00032876,2]
[319600680,1710885138320,-500.0,0.00032876,2]
[319600681,1710885138329,-500.0,0.00032876,2]
[319600682,1710885138338,-652.31,0.00032876,2]
[319600683,1710885138347,-1320.6,0.00032876,2]
[319600684,1710885138357,-1250.92,0.00032876,2]
[319600685,1710885138366,-1120.04,0.00032876,2]
[319600686,1710885138381,-500.0,0.00032876,2]
[319600687,1710885138394,-510.25,0.00032876,2]
[319600688,1710885138403,-921.3,0.00032876,2]
[319600689,1710885138412,-1043.25,0.00032876,2]
[319600690,1710885138421,-1041.72,0.00032876,2]
[319600691,1710885138430,-500.0,0.00032876,2]
[319600692,1710885138439,-535.44,0.00032876,2]
[319600693,1710885138449,-500.0,0.00032876,2]
[319600694,1710885138458,-500.0,0.00032876,2]
[319600695,1710885138470,-500.0,0.00032876,2]
[319600696,1710885138479,-500.0,0.00032876,2]
[319600697,1710885138488,-500.0,0.00032876,2]
[319600698,1710885138497,-957.02,0.00032876,2]
[319600699,1710885138507,-549.6,0.00032876,2]
[319600700,1710885138518,-500.0,0.00032876,2]
[319600701,1710885138531,-500.0,0.00032876,2]
[319600702,1710885138541,-546.14,0.00032876,2]
[319600703,1710885138551,-500.0,0.00032876,2]
[319600704,1710885138561,-500.0,0.00032876,2]
[319600705,1710885138569,-500.0,0.00032876,2]
[319600706,1710885138578,-983.01,0.00032876,2]
[319600707,1710885138588,-500.0,0.00032876,2]
[319600708,1710885138597,-500.0,0.00032876,2]
[319600709,1710885138606,-502.25,0.00032876,2]
[319600710,1710885138615,-583.52,0.00032876,2]
[319600711,1710885138625,-500.0,0.00032876,2]
[319600712,1710885138635,-701.32,0.00032876,2]
[319600713,1710885138645,-845.97,0.00032876,2]
[319600714,1710885138654,-624.11716042,0.00032876,2]
[319600715,1710885138663,-604.6,0.00032876,2]
[319600716,1710885138672,-626.44,0.00032876,2]
[319600717,1710885138681,-500.0,0.00032876,2]
[319600718,1710885138691,-500.0,0.00032876,2]
[319600719,1710885138701,-1296.65,0.00032876,2]
[319600720,1710885138710,-500.0,0.00032876,2]
[319600721,1710885138720,-1134.53,0.00032876,2]
[319600722,1710885138729,-500.0,0.00032876,2]
[319600723,1710885138738,-500.0,0.00032876,2]
[319600724,1710885138748,-783.57,0.00032876,2]
[319600725,1710885138758,-507.2,0.00032876,2]
[319600726,1710885138767,-1022.89,0.00032876,2]
[319600727,1710885138776,-668.88,0.00032876,2]
[319600728,1710885138786,-500.0,0.00032876,2]
[319600729,1710885138795,-500.0,0.00032876,2]
[319600730,1710885138804,-597.77,0.00032876,2]
[319600731,1710885138813,-500.0,0.00032876,2]
[319600732,1710885138822,-500.0,0.00032876,2]
[319600733,1710885138831,-1578.12,0.00032876,2]
[319600734,1710885138841,-1317.95,0.00032876,2]
[319600735,1710885138850,-500.0,0.00032876,2]
[319600736,1710885138859,-706.81,0.00032876,2]
[319600737,1710885138868,-500.0,0.00032876,2]
[319600738,1710885138877,-820.72,0.00032876,2]
[319600739,1710885138887,-511.35,0.00032876,2]
[319600740,1710885138896,-500.0,0.00032876,2]
[319600741,1710885138905,-1159.47,0.00032876,2]
[319600742,1710885138914,-752.64,0.00032876,2]
[319600743,1710885138923,-1433.6,0.00032876,2]
[319600744,1710885138932,-500.0,0.00032876,2]
[319600745,1710885138941,-500.0,0.00032876,2]
[319600746,1710885138951,-500.0,0.00032876,2]
[319600747,1710885138960,-1189.27,0.00032876,2]
[319600748,1710885138970,-500.0,0.00032876,2]
[319600749,1710885138979,-500.0,0.00032876,2]
[319600750,1710885138988,-572.14,0.00032876,2]
[319600751,1710885138997,-1127.91,0.00032876,2]
[319600752,1710885139007,-729.46,0.00032876,2]
[319600753,1710885139015,-500.0,0.00032876,2]
[319600754,1710885139025,-500.0,0.00032876,2]
[319600755,1710885139034,-1199.62,0.00032876,2]
[319600756,1710885139044,-562.99,0.00032876,2]
[319600757,1710885139053,-786.3,0.00032876,2]
[319600758,1710885139063,-607.57712661,0.00032876,2]
[319600759,1710885139073,-500.0,0.00032876,2]
[319600760,1710885139083,-1265.95,0.00032876,2]
[319600761,1710885139093,-580.29,0.00032876,2]
[319600762,1710885139102,-500.0,0.00032876,2]
[319600763,1710885139111,-500.0,0.00032876,2]
[319600764,1710885139120,-500.0,0.00032876,2]
[319600765,1710885139130,-718.68,0.00032876,2]
[319600766,1710885139139,-2136.15,0.00032876,2]
[319600767,1710885139149,-928.05,0.00032876,2]
[319600768,1710885139158,-500.0,0.00032876,2]
[319600769,1710885139169,-783.9,0.00032876,2]
[319600770,1710885139178,-1320.02,0.00032876,2]
[319600771,1710885139188,-1043.02,0.00032876,2]
[319600772,1710885139197,-802.08,0.00032876,2]
[319600773,1710885139207,-1028.49,0.00032876,2]
[319600774,1710885139216,-1179.51,0.00032876,2]
[319600775,1710885139225,-812.3,0.00032876,2]
[319600776,1710885139235,-1146.04,0.00032876,2]
[319600777,1710885139244,-500.0,0.00032876,2]
[319600778,1710885139254,-1045.71,0.00032876,2]
[319600779,1710885139263,-500.0,0.00032876,2]
[319600780,1710885139273,-530.67,0.00032876,2]
[319600781,1710885139283,-500.0,0.00032876,2]
[319600782,1710885139292,-649.64,0.00032876,2]
[319600783,1710885139301,-500.0,0.00032876,2]
[319600784,1710885139311,-500.0,0.00032876,2]
[319600785,1710885139320,-500.0,0.00032876,2]
[319600786,1710885139330,-500.0,0.00032876,2]
[319600787,1710885139340,-500.0,0.00032876,2]
[319600788,1710885139350,-775.28,0.00032876,2]
[319600789,1710885139360,-897.58,0.00032876,2]
[319600790,1710885139370,-1675.73,0.00032876,2]
[319600791,1710885139380,-500.0,0.00032876,2]
[319600792,1710885139389,-937.79,0.00032876,2]
[319600793,1710885139399,-500.0,0.00032876,2]
[319600794,1710885139409,-734.15,0.00032876,2]
[319600795,1710885139620,-1431.93,0.00032876,2]
[319600796,1710885139642,-530.51,0.00032876,2]
[319600797,1710885139652,-1508.78,0.00032876,2]
[319600798,1710885139662,-500.0,0.00032876,2]
[319600799,1710885139671,-500.0,0.00032876,2]
[319600800,1710885139681,-295.54274468,0.00032876,2]
[319600801,1710885139691,-621.71,0.00032876,2]
[319600802,1710885139700,-3024.0,0.00032876,2]
[319600803,1710885139709,-571.47,0.00032876,2]
[319600804,1710885139719,-500.0,0.00032876,2]
[319600805,1710885139729,-538.79,0.00032876,2]
[319600806,1710885139738,-762.86,0.00032876,2]
[319600807,1710885139748,-985.89,0.00032876,2]
[319600808,1710885139757,-1947.91,0.00032876,2]
[319600809,1710885139766,-863.2,0.00032876,2]
[319600810,1710885139775,-500.0,0.00032876,2]
[319600811,1710885139785,-747.16,0.00032876,2]
[319600812,1710885139795,-538.79,0.00032876,2]
[319600813,1710885139804,-772.61,0.00032876,2]
[319600814,1710885139813,-500.0,0.00032876,2]
[319600815,1710885139823,-500.0,0.00032876,2]
[319600816,1710885139833,-1767.34,0.00032876,2]